fUSD/lending_fUSD_20250330
["ID","MTS","AMOUNT","RATE_DAILY","PERIOD"]
[356853114,1743336641991,-151.0,0.000232,7]
[356853116,1743336642000,-152.17578,0.000232,7]
[356853118,1743336642010,-3640.3355507,0.00023265,2]
[356853121,1743336642019,-157.307026,0.00023313,7]
[356853123,1743336642029,-157.307026,0.00023313,7]
[356853125,1743336642038,-174.506227,0.00023313,7]
[356853127,1743336642048,-364.425184,0.00023313,7]
[356853129,1743336642058,-174.506227,0.00023313,7]
[356853131,1743336642068,-364.425184,0.00023313,7]
[356853133,1743336642077,-200.0,0.000235,2]
[356853135,1743336642087,-10000.0,0.00023649,7]
[356853137,1743336642097,-154.077989,0.00023649,7]
[356853141,1743336642107,-151.0,0.00023649,7]
[356853144,1743336642116,-151.0,0.00023649,7]
[356853148,1743336642125,-169.929131,0.00023649,7]
[356853150,1743336642135,-291.126451,0.00023649,7]
[356853152,1743336642144,-291.126451,0.00023649,7]
[356853154,1743336642154,-436.928401,0.00023649,7]
[356853156,1743336642163,-436.928401,0.00023649,7]
[356853158,1743336642172,-163.307261,0.00023649,7]
[356853160,1743336642182,-151.0,0.00023649,7]
[356853162,1743336642198,-191.70379973,0.000238,2]
[356853164,1743336642208,-1016.0,0.0002382,2]
[356853166,1743336642218,-151.0,0.0002382,2]
[356853168,1743336642228,-3947.0,0.0002382,2]
[356853170,1743336642239,-810.57,0.00023836,2]
[356853172,1743336642249,-1000.0,0.00023866,2]
[356853174,1743336642260,-2535.0463639,0.00023884,2]
[356853176,1743336642270,-1173.04,0.00023896,2]
[356853178,1743336642281,-150.0,0.00023899,2]
[356853180,1743336642291,-151.0,0.000239,7]
[356853182,1743336642301,-456.47439,0.000239,6]
[356853184,1743336642312,-456.47439,0.000239,6]
[356853198,1743336642431,-88308.87476103,0.000239,2]
[356853200,1743336642440,-151.0,0.000239,7]
[356853203,1743336642449,-151.0,0.000239,7]
[356853205,1743336642458,-151.0,0.000239,7]
[356853207,1743336642467,-151.0,0.000239,7]
[356853209,1743336642477,-542.319687,0.000239,7]
[356853211,1743336642486,-542.319687,0.000239,7]
[356853213,1743336642495,-151.0,0.000239,7]
[356853215,1743336642504,-542.319687,0.000239,7]
[356853217,1743336642513,-151.0,0.000239,7]
[356853219,1743336642523,-542.319687,0.000239,7]
[356853221,1743336642532,-151.0,0.000239,7]
[356853223,1743336642541,-153.738135,0.000239,7]
[356853225,1743336642551,-151.0,0.000239,7]
[356853227,1743336642561,-151.0,0.000239,7]
[356853229,1743336642570,-152.695271,0.000239,7]
[356853231,1743336642580,-151.0,0.000239,7]
[356853233,1743336642589,-151.0,0.000239,7]
[356853236,1743336642598,-151.0,0.000239,7]
[356853239,1743336642607,-151.0,0.000239,7]
[356853241,1743336642616,-151.0,0.000239,7]
[356853243,1743336642625,-153.29785,0.000239,7]
[356853245,1743336642635,-152.610994,0.000239,7]
[356853247,1743336642645,-151.0,0.000239,7]
[356853249,1743336642654,-151.0,0.000239,7]
[356853251,1743336642663,-181.089914,0.000239,7]
[356853253,1743336642673,-151.0,0.000239,7]
[356853255,1743336642682,-151.0,0.000239,7]
[356853257,1743336642691,-199.018274,0.000239,7]
[356853259,1743336642700,-288.510051,0.000239,7]
[356853261,1743336642710,-288.510051,0.000239,7]
[356853263,1743336642719,-288.510051,0.000239,7]
[356853265,1743336642728,-288.510051,0.000239,7]
[356853267,1743336642742,-151.0,0.000239,7]
[356853269,1743336642752,-306.81131,0.000239,7]
[356853271,1743336642762,-306.81131,0.000239,7]
[356853273,1743336642771,-454.097864,0.000239,7]
[356853275,1743336642782,-454.097864,0.000239,7]
[356853277,1743336642791,-454.097864,0.000239,7]
[356853279,1743336642800,-454.097872,0.000239,7]
[356853281,1743336642809,-151.0,0.000239,7]
[356853283,1743336642819,-231.914525,0.000239,7]
[356853284,1743336642829,-231.91453,0.000239,7]
[356853286,1743336642838,-2835.315565,0.000239,7]
[356853288,1743336642848,-2835.315565,0.000239,7]
[356853290,1743336642858,-1828.083771,0.000239,7]
[356853292,1743336642867,-616.823947,0.000239,7]
[356853294,1743336642876,-616.823949,0.000239,7]
[356853296,1743336642886,-299.649869,0.000239,7]
[356853298,1743336642895,-299.649868,0.000239,7]
[356853300,1743336642904,-163.329996,0.000239,7]
[356853302,1743336642913,-157.307026,0.000239,7]
[356853304,1743336642923,-163.330006,0.000239,7]
[356853306,1743336642932,-157.307026,0.000239,7]
[356853308,1743336642941,-174.506227,0.000239,7]
[356853310,1743336642951,-364.425184,0.000239,7]
[356853312,1743336642960,-174.506227,0.000239,7]
[356853314,1743336642970,-364.425184,0.000239,7]
[356853316,1743336642980,-2315.035441,0.000239,7]
[356853318,1743336642989,-151.0,0.000239,7]
[356853320,1743336642999,-2315.035441,0.000239,7]
[356853322,1743336643008,-277.446909,0.000239,7]
[356853324,1743336643017,-277.446909,0.000239,7]
[356853326,1743336643027,-232.619962,0.000239,7]
[356853328,1743336643037,-232.619962,0.000239,7]
[356853330,1743336643046,-151.0,0.000239,7]
[356853332,1743336643056,-1691.825242,0.000239,7]
[356853334,1743336643066,-1691.825242,0.000239,7]
[356853336,1743336643076,-151.0,0.000239,7]
[356853338,1743336643085,-151.0,0.000239,7]
[356853340,1743336643094,-164.70553,0.000239,7]
[356853342,1743336643104,-151.0,0.000239,7]
[356853344,1743336643113,-151.0,0.000239,7]
[356853346,1743336643122,-164.70553,0.000239,7]
[356853348,1743336643130,-305.811413,0.000239,7]
[356853350,1743336643140,-305.811413,0.000239,7]
[356853352,1743336643149,-6049.747062,0.000239,7]
[356853354,1743336643158,-151.0,0.000239,7]
[356853355,1743336643167,-151.0,0.000239,7]
[356853357,1743336643177,-293.88731,0.000239,7]
[356853359,1743336643186,-293.88731,0.000239,7]
[356853361,1743336643195,-172.005936,0.000239,7]
[356853363,1743336643204,-495.209222,0.000239,7]
[356853365,1743336643213,-495.209222,0.000239,7]
[356853367,1743336643222,-172.005936,0.000239,7]
[356853369,1743336643231,-495.209222,0.000239,7]
[356853371,1743336643241,-495.209222,0.000239,7]
[356853373,1743336643250,-151.0,0.000239,7]
[356853375,1743336643260,-291.126451,0.000239,7]
[356853377,1743336643269,-291.126451,0.000239,7]
[356853379,1743336643278,-436.928401,0.000239,7]
[356853381,1743336643287,-436.928401,0.000239,7]
[356853383,1743336643296,-151.0,0.000239,7]
[356853386,1743336643305,-502.96962876,0.00023973,2]
[356853389,1743336643314,-300.0,0.00023999,2]
[356853391,1743336643324,-809.0,0.00024,2]
[356853394,1743336643333,-51525.18999636,0.00024,2]
[356853397,1743336643342,-980.95055042,0.00024,2]
[356853401,1743336643355,-40630.42804624,0.00024,2]
[356853404,1743336643365,-151.0,0.00024,7]
[356853407,1743336643375,-151.0,0.00024,7]
[356853410,1743336643384,-151.0,0.00024,7]
[356853412,1743336643393,-151.0,0.00024,7]
[356853415,1743336643402,-155.413743,0.00024,7]
[356853418,1743336643411,-269.88147722,0.00024,2]
[356853420,1743336643421,-456.47439,0.00024,6]
[356853423,1743336643431,-456.47439,0.00024,6]
[356853425,1743336643440,-456.47439,0.00024,6]
[356853427,1743336643449,-456.47439,0.00024,6]
[356853429,1743336643459,-456.47439,0.00024,6]
[356853431,1743336643468,-456.47439,0.00024,6]
[356853433,1743336643477,-456.47439,0.00024,6]
[356853435,1743336643487,-456.47439,0.00024,6]
[356853437,1743336643496,-456.47439,0.00024,6]
[356853439,1743336643505,-456.47439,0.00024,6]
[356853441,1743336643514,-456.47439,0.00024,6]
[356853443,1743336643523,-456.47439,0.00024,6]
[356853445,1743336643532,-456.47439,0.00024,6]
[356853447,1743336643542,-456.474384,0.00024,6]
[356853449,1743336643551,-151.0,0.00024,7]
[356853451,1743336643559,-151.0,0.00024,7]
[356853453,1743336643568,-151.0,0.00024,7]
[356853455,1743336643578,-151.0,0.00024,7]
[356853457,1743336643587,-151.0,0.00024,7]
[356853459,1743336643595,-151.0,0.00024,7]
[356853461,1743336643605,-246.837051,0.00024,7]
[356853462,1743336643613,-542.319687,0.00024,7]
[356853464,1743336643622,-542.319687,0.00024,7]
[356853466,1743336643631,-542.319687,0.00024,7]
[356853468,1743336643640,-542.319687,0.00024,7]
[356853470,1743336643649,-542.319687,0.00024,7]
[356853472,1743336643658,-151.0,0.00024,7]
[356853474,1743336643667,-542.319687,0.00024,7]
[356853476,1743336643676,-151.0,0.00024,7]
[356853478,1743336643685,-542.319687,0.00024,7]
[356853480,1743336643694,-298.939159,0.00024,7]
[356853482,1743336643703,-542.319687,0.00024,7]
[356853484,1743336643712,-542.319687,0.00024,7]
[356853486,1743336643721,-542.319691,0.00024,7]
[356853488,1743336643730,-151.0,0.00024,7]
[356853490,1743336643743,-151.0,0.00024,7]
[356853491,1743336643751,-151.0,0.00024,7]
[356853493,1743336643761,-151.0,0.00024,7]
[356853495,1743336643769,-151.0,0.00024,7]
[356853497,1743336643779,-151.0,0.00024,7]
[356853499,1743336643788,-288.510051,0.00024,7]
[356853501,1743336643797,-288.510051,0.00024,7]
[356853503,1743336643807,-288.510051,0.00024,7]
[356853505,1743336643816,-288.510051,0.00024,7]
[356853507,1743336643825,-288.510051,0.00024,7]
[356853509,1743336643834,-288.510053,0.00024,7]
[356853511,1743336643843,-151.0,0.00024,7]
[356853513,1743336643852,-306.81131,0.00024,7]
[356853515,1743336643861,-306.81132,0.00024,7]
[356853517,1743336643870,-151.0,0.00024,7]
[356853519,1743336643880,-1828.08378,0.00024,7]
[356853520,1743336643891,-157.307026,0.00024,7]
[356853522,1743336643900,-157.307027,0.00024,7]
[356853524,1743336643909,-174.506227,0.00024,7]
[356853526,1743336643919,-364.425184,0.00024,7]
[356853528,1743336643931,-174.506229,0.00024,7]
[356853530,1743336643942,-364.425175,0.00024,7]
[356853532,1743336643950,-2315.035441,0.00024,7]
[356853534,1743336643959,-2315.035441,0.00024,7]
[356853536,1743336643968,-151.0,0.00024,7]
[356853538,1743336643976,-151.0,0.00024,7]
[356853540,1743336643985,-2315.035441,0.00024,7]
[356853542,1743336643995,-2315.035447,0.00024,7]
[356853544,1743336644004,-277.446909,0.00024,7]
[356853546,1743336644013,-277.446909,0.00024,7]
[356853548,1743336644022,-277.446909,0.00024,7]
[356853550,1743336644031,-277.446903,0.00024,7]
[356853552,1743336644041,-232.619962,0.00024,7]
[356853554,1743336644052,-232.619962,0.00024,7]
[356853556,1743336644061,-232.619962,0.00024,7]
[356853557,1743336644070,-232.619962,0.00024,7]
[356853559,1743336644079,-232.619962,0.00024,7]
[356853561,1743336644088,-232.619955,0.00024,7]
[356853563,1743336644098,-151.0,0.00024,7]
[356853565,1743336644107,-151.0,0.00024,7]
[356853567,1743336644116,-151.0,0.00024,7]
[356853569,1743336644126,-1691.825242,0.00024,7]
[356853571,1743336644135,-1691.825242,0.00024,7]
[356853573,1743336644145,-1691.825242,0.00024,7]
[356853575,1743336644154,-1691.825242,0.00024,7]
[356853577,1743336644163,-1691.825242,0.00024,7]
[356853579,1743336644172,-1691.825239,0.00024,7]
[356853581,1743336644182,-151.0,0.00024,7]
[356853583,1743336644191,-151.0,0.00024,7]
[356853585,1743336644200,-151.0,0.00024,7]
[356853587,1743336644209,-222.435754,0.00024,7]
[356853589,1743336644218,-164.70553,0.00024,7]
[356853591,1743336644227,-164.70553,0.00024,7]
[356853593,1743336644236,-164.70553,0.00024,7]
[356853595,1743336644246,-151.0,0.00024,7]
[356853597,1743336644255,-151.0,0.00024,7]
[356853609,1743336644364,-164.70553,0.00024,7]
[356853611,1743336644374,-164.70553,0.00024,7]
[356853613,1743336644384,-164.705538,0.00024,7]
[356853615,1743336644394,-305.811413,0.00024,7]
[356853617,1743336644403,-305.811413,0.00024,7]
[356853619,1743336644412,-305.811413,0.00024,7]
[356853621,1743336644421,-305.811413,0.00024,7]
[356853623,1743336644430,-305.811413,0.00024,7]
[356853625,1743336644440,-305.811404,0.00024,7]
[356853627,1743336644449,-153.507009,0.00024,7]
[356853629,1743336644458,-151.0,0.00024,7]
[356853631,1743336644467,-151.0,0.00024,7]
[356853633,1743336644476,-293.88731,0.00024,7]
[356853634,1743336644486,-293.88731,0.00024,7]
[356853636,1743336644495,-293.88731,0.00024,7]
[356853638,1743336644505,-293.88731,0.00024,7]
[356853640,1743336644514,-293.88731,0.00024,7]
[356853642,1743336644523,-172.005936,0.00024,7]
[356853644,1743336644532,-293.887308,0.00024,7]
[356853646,1743336644542,-172.005936,0.00024,7]
[356853648,1743336644550,-172.005936,0.00024,7]
[356853650,1743336644560,-495.209222,0.00024,7]
[356853652,1743336644568,-495.209222,0.00024,7]
[356853654,1743336644578,-172.005936,0.00024,7]
[356853656,1743336644587,-172.005936,0.00024,7]
[356853658,1743336644597,-172.005936,0.00024,7]
[356853660,1743336644606,-495.209222,0.00024,7]
[356853662,1743336644615,-495.209212,0.00024,7]
[356853664,1743336644624,-151.0,0.00024,7]
[356853666,1743336644633,-151.0,0.00024,7]
[356853668,1743336644642,-291.126451,0.00024,7]
[356853670,1743336644651,-291.126451,0.00024,7]
[356853672,1743336644660,-291.126451,0.00024,7]
[356853674,1743336644670,-291.126442,0.00024,7]
[356853676,1743336644679,-436.928401,0.00024,7]
[356853677,1743336644688,-436.928401,0.00024,7]
[356853679,1743336644697,-436.928401,0.00024,7]
[356853681,1743336644706,-436.928407,0.00024,7]
[356853683,1743336644715,-223.84389,0.00024,7]
[356853685,1743336644724,-782.93274699,0.0002402,2]
[356853686,1743336644737,-405.31498394,0.0002421,2]
[356853687,1743336644746,-3551.5382844,0.0002421,2]
[356853688,1743336644756,-263.41139904,0.0002421,2]
[356853689,1743336644765,-256.09,0.00024658,4]
[356853690,1743336644775,-1000.0,0.00024658,2]
[356853691,1743336644784,-152.053,0.00024658,7]
[356853692,1743336644793,-163.18736941,0.00024658,2]
[356853693,1743336644802,-151.06141926,0.00024658,2]
[356853694,1743336644812,-150.0,0.00024658,2]
[356853695,1743336644821,-150.0,0.00024658,2]
[356853696,1743336644831,-150.0,0.00024658,2]
[356853697,1743336644839,-150.0,0.00024658,2]
[356853698,1743336644848,-500.0,0.00024658,2]
[356853699,1743336644857,-500.0,0.00024658,2]
[356853700,1743336644866,-1059.0,0.00024658,2]
[356853701,1743336644875,-150.0,0.00024658,2]
[356853702,1743336644884,-150.0,0.00024658,2]
[356853704,1743336644894,-150.0,0.00024658,2]
[356853705,1743336644903,-150.0,0.00024658,2]
[356853707,1743336644912,-8995.0,0.00024658,2]
[356853709,1743336644921,-150.0,0.00024658,2]
[356853711,1743336644930,-150.43177033,0.00024658,2]
[356853713,1743336644939,-150.0,0.00024658,2]
[356853715,1743336644949,-150.0,0.00024658,2]
[356853717,1743336644958,-150.0,0.00024658,2]
[356853719,1743336644967,-500.0,0.00024658,2]
[356853721,1743336644976,-500.0,0.00024658,2]
[356853723,1743336644986,-500.0,0.00024658,2]
[356853725,1743336644995,-151.74289569,0.00024658,2]
[356853727,1743336645004,-150.0,0.00024685,2]
[356853729,1743336645014,-150.0,0.00024685,2]
[356853731,1743336645023,-150.0,0.00024685,2]
[356853733,1743336645032,-150.0,0.00024685,2]
[356853735,1743336645041,-500.0,0.00024685,2]
[356853737,1743336645050,-504.53732657,0.00024685,2]
[356853739,1743336645060,-1059.0,0.00024685,2]
[356853741,1743336645069,-150.0,0.00024685,2]
[356853743,1743336645078,-150.0,0.00024685,2]
[356853745,1743336645087,-8995.0,0.00024685,2]
[356853747,1743336645097,-150.0,0.00024685,2]
[356853749,1743336645107,-150.0,0.00024685,2]
[356853751,1743336645116,-150.0,0.00024685,2]
[356853753,1743336645125,-150.0,0.00024685,2]
[356853755,1743336645135,-500.0,0.00024685,2]
[356853757,1743336645144,-895.06586547,0.00024685,2]
[356853759,1743336645153,-500.0,0.00024685,2]
[356853761,1743336645163,-82349.48360413,0.000247,2]
[356853763,1743336645172,-150.0,0.00024713,2]
[356853765,1743336645181,-150.0,0.00024713,2]
[356853768,1743336645191,-200.82705815,0.00024713,2]
[356853771,1743336645200,-150.67319877,0.00024713,2]
[356853774,1743336645209,-571.75576244,0.00024713,2]
[356853777,1743336645218,-1059.0,0.00024713,2]
[356853780,1743336645227,-205.55229465,0.00024713,2]
[356853783,1743336645236,-150.0,0.00024713,2]
[356853785,1743336645245,-8995.0,0.00024713,2]
[356853788,1743336645255,-202.31584113,0.00024713,2]
[356853791,1743336645264,-201.03529584,0.00024713,2]
[356853793,1743336645273,-205.19586971,0.00024713,2]
[356853795,1743336645281,-202.90186895,0.00024713,2]
[356853797,1743336645290,-500.0,0.00024713,2]
[356853799,1743336645299,-500.0,0.00024713,2]
[356853801,1743336645309,-224.48490363,0.0002474,2]
[356853803,1743336645318,-194.38257907,0.0002474,2]
[356853805,1743336645328,-1059.0,0.0002474,2]
[356853807,1743336645337,-205.58549056,0.0002474,2]
[356853809,1743336645346,-8995.0,0.0002474,2]
[356853811,1743336645355,-500.0,0.0002474,2]
[356853813,1743336645365,-500.0,0.0002474,2]
[356853815,1743336645374,-1059.0,0.00024768,2]
[356853817,1743336645383,-8995.0,0.00024768,2]
[356853819,1743336645393,-500.0,0.00024768,2]
[356853821,1743336645402,-500.0,0.00024768,2]
[356853823,1743336645412,-4125.7136241,0.00024783,2]
[356853825,1743336645421,-431.13449923,0.0002479,2]
[356853827,1743336645431,-1059.0,0.00024795,2]
[356853829,1743336645440,-8995.0,0.00024795,2]
[356853831,1743336645449,-500.0,0.00024795,2]
[356853833,1743336645459,-505.39831674,0.00024795,2]
[356853835,1743336645468,-578196.151586,0.000248,3]
[356853837,1743336645477,-1480.92226085,0.00024811,2]
[356853839,1743336645486,-1059.0,0.00024822,2]
[356853841,1743336645495,-8995.0,0.00024822,2]
[356853843,1743336645505,-500.0,0.00024822,2]
[356853845,1743336645514,-1059.0,0.0002485,2]
[356853847,1743336645523,-8995.0,0.0002485,2]
[356853849,1743336645533,-500.0,0.0002485,2]
[356853851,1743336645542,-1059.0,0.00024877,2]
[356853853,1743336645551,-8995.0,0.00024877,2]
[356853855,1743336645560,-500.0,0.00024877,2]
[356853857,1743336645569,-2822.3998667,0.00024883,2]
[356853859,1743336645578,-1966.90364369,0.000249,2]
[356853861,1743336645587,-78901.1048248,0.000249,3]
[356853863,1743336645596,-1059.0,0.00024905,2]
[356853865,1743336645605,-8995.0,0.00024905,2]
[356853867,1743336645614,-500.0,0.00024905,2]
[356853869,1743336645623,-150.0,0.00024922,2]
[356853871,1743336645631,-1059.0,0.00024932,2]
[356853873,1743336645641,-8995.0,0.00024932,2]
[356853875,1743336645649,-500.0,0.00024932,2]
[356853877,1743336645660,-1059.0,0.00024959,2]
[356853879,1743336645669,-8995.0,0.00024959,2]
[356853881,1743336645678,-654.70815865,0.00024959,2]
[356853883,1743336645686,-1059.0,0.00024987,2]
[356853885,1743336645695,-8995.0,0.00024987,2]
[356853887,1743336645704,-250.0,0.00025,2]
[356853889,1743336645713,-1059.0,0.00025014,2]
[356853891,1743336645722,-8995.0,0.00025014,2]
[356853893,1743336645731,-1059.0,0.00025042,2]
[356853895,1743336645742,-8995.0,0.00025042,2]
[356853897,1743336645751,-1059.0,0.00025069,2]
[356853899,1743336645760,-8995.0,0.00025069,2]
[356853901,1743336645769,-1059.0,0.00025096,2]
[356853903,1743336645778,-8995.0,0.00025096,2]
[356853905,1743336645787,-400.0,0.000251,2]
[356853907,1743336645796,-1059.0,0.00025124,2]
[356853909,1743336645805,-8995.0,0.00025124,2]
[356853911,1743336645815,-1059.0,0.00025151,2]
[356853913,1743336645825,-8995.0,0.00025151,2]
[356853915,1743336645833,-1078.52978417,0.00025179,2]
[356853917,1743336645843,-9010.90094189,0.00025179,2]
[356853919,1743336645852,-150.0,0.00025269,2]
[356853921,1743336645861,-150.584,0.00025622,2]
[356853923,1743336645870,-643.0,0.00025622,2]
[356853925,1743336645879,-1283.0,0.00025622,2]
[356853927,1743336645887,-2039.0,0.00025622,2]
[356853929,1743336645896,-570.0,0.00025622,2]
[356853931,1743336645905,-1420.0,0.00025622,2]
[356853933,1743336645914,-1274.0,0.00025622,2]
[356853935,1743336645923,-789.0,0.00025622,2]
[356853937,1743336645932,-908.0,0.00025622,2]
[356853939,1743336645941,-4090.0,0.00025622,2]
[356853941,1743336645950,-1433.0,0.00025622,2]
[356853943,1743336645959,-543.0,0.00025622,2]
[356853945,1743336645968,-1173.04,0.0002616,2]
[356853947,1743336645977,-1000.0,0.00026518,2]
[356853950,1743336645986,-164.84,0.00026523,2]
[356853952,1743336645996,-150.0,0.00026639,2]
[356853953,1743336646006,-500.0,0.00026712,2]
[356853955,1743336646015,-1480.92226085,0.00026722,2]
[356853968,1743336646024,-2890.0,0.00026767,2]
[356853970,1743336646129,-42532.0,0.00026767,2]
[356853972,1743336646138,-1966.90364369,0.000268,2]
[356853974,1743336646147,-1016.0,0.0002682,2]
[356853977,1743336646157,-151.0,0.0002682,2]
[356853978,1743336646166,-3947.0,0.0002682,2]
[356853981,1743336646175,-7000.0,0.00026846,2]
[356853983,1743336646184,-249.27,0.00026849,2]
[356853985,1743336646194,-236.65,0.00026849,2]
[356853986,1743336646203,-368.05,0.00026849,2]
[356853988,1743336646213,-300.0,0.00027,2]
[356853990,1743336646222,-419.0,0.000271,2]
[356853992,1743336646231,-150.0,0.00027397,2]
[356853994,1743336646240,-151.0,0.00027397,7]
[356853996,1743336646249,-154.03,0.00027397,2]
[356853998,1743336646259,-741.0,0.000281,2]
[356854001,1743336646268,-753.0,0.000281,2]
[356854002,1743336646278,-468.0,0.000281,2]
[356854004,1743336646288,-346.99,0.00028384,2]
[356854006,1743336646297,-346.99,0.00028384,2]
[356854009,1743336646307,-1173.04,0.00028424,2]
[356854011,1743336646317,-346.99,0.00028471,2]
[356854012,1743336646326,-346.99,0.00028471,2]
[356854014,1743336646335,-643.0,0.00028622,2]
[356854016,1743336646344,-1063.596,0.00028622,2]
[356854018,1743336646353,-2039.0,0.00028622,2]
[356854020,1743336646363,-1274.0,0.00028622,2]
[356854022,1743336646372,-789.0,0.00028622,2]
[356854024,1743336646383,-908.0,0.00028622,2]
[356854026,1743336646392,-2717.924,0.00028622,2]
[356854028,1743336646401,-1433.0,0.00028622,2]
[356854030,1743336646411,-336.176,0.00028622,2]
[356854032,1743336646421,-1480.92226085,0.00028633,2]
[356854034,1743336646430,-1966.90364369,0.000287,2]
[356854036,1743336646440,-152.47,0.00028771,2]
[356854038,1743336646449,-191.70379971,0.00028817,2]
[356854040,1743336646458,-8651.0,0.00028898,2]
[356854042,1743336646468,-1094.9516153,0.00028972,4]
[356854045,1743336646478,-350.0,0.00029,2]
[356854047,1743336646487,-1000.0,0.0002917,2]
[356854049,1743336646497,-276.09,0.00029275,2]
[356854050,1743336646506,-30102.63665818,0.000294,2]
[356854052,1743336646515,-1016.0,0.0002982,2]
[356854054,1743336646525,-151.0,0.0002982,2]
[356854056,1743336646534,-3947.0,0.0002982,2]
[356854058,1743336646543,-4611.0916976,0.00029879,2]
[356854060,1743336646553,-75387.18334096,0.000299,2]
[356854062,1743336646562,-2000.0,0.00029913,4]
[356854064,1743336646571,-2000.0,0.00029927,4]
[356854066,1743336646580,-2000.0,0.00029942,4]
[356854068,1743336646590,-2000.0,0.00029956,4]
[356854070,1743336646599,-2000.0,0.00029971,4]
[356854072,1743336646609,-3109.7533695,0.00029979,2]
[356854074,1743336646618,-1290.09838144,0.00029985,4]
[356854076,1743336646627,-227.93395157,0.0002999,2]
[356854078,1743336646637,-9095.90622257,0.0003,5]
[356854080,1743336646646,-2270.75225535,0.0003,2]
[356854082,1743336646655,-29420.73944627,0.0003,2]
[356854085,1743336646665,-205008.70404534,0.0003,2]
[356854087,1743336646674,-242.93925973,0.0003,2]
[356854089,1743336646683,-1228.44923196,0.0003,10]
[356854090,1743336646692,-1743.05471874,0.0003,2]
[356854092,1743336646702,-1539.164003,0.0003,2]
[356854094,1743336646711,-212.0,0.0003,2]
[356854097,1743336646721,-154.03,0.00030137,2]
[356854098,1743336646730,-200.0,0.00030137,2]
[356854101,1743336646743,-1480.92226085,0.00030544,2]
[356854103,1743336646752,-7442.37399825,0.000306,2]
[356854104,1743336646762,-1966.90364369,0.000306,2]
[356854106,1743336646771,-221.11,0.00030671,2]
[356854109,1743336646783,-194.85,0.00030671,2]
[356854111,1743336646792,-346.99,0.00030671,2]
[356854113,1743336646801,-205.78,0.00030671,2]
[356854114,1743336646811,-443.48,0.00030671,2]
[356854116,1743336646821,-150.0,0.00030671,2]
[356854118,1743336646830,-150.0,0.00030671,2]
[356854120,1743336646839,-150.0,0.00030671,2]
[356854122,1743336646848,-346.99,0.00030671,2]
[356854124,1743336646857,-443.48,0.00030671,2]
[356854126,1743336646866,-150.0,0.00030671,2]
[356854128,1743336646875,-443.48,0.00030671,2]
[356854131,1743336646885,-150.0,0.00030671,2]
[356854132,1743336646895,-346.99,0.00030671,2]
[356854134,1743336646904,-150.0,0.00030671,2]
[356854136,1743336646913,-443.48,0.00030671,2]
[356854138,1743336646922,-150.0,0.00030671,2]
[356854140,1743336646931,-346.99,0.00030671,2]
[356854142,1743336646940,-150.0,0.00030671,2]
[356854144,1743336646950,-150.0,0.00030671,2]
[356854147,1743336646959,-150.0,0.00030671,2]
[356854149,1743336646968,-443.48,0.00030671,2]